{"text_format":"1","workbook":"xlsx","n_sheets":25,"sheets":["Лист2","КНП \"ЦПМСД № 2\"","КНП \"ЦПМСД № 1\"","КНП \"ЦПМСД № 2.1\"","КНП \"ЦПМСД № 3\"","КНП \"ЦПМСД № 1 деснянского\"","КНП \"ЦПМСД № 3.1\"","КНП \"ЦПМСД № 4\"","КНП \"ЦПМСД № 1 дніпровського\"","КНП \"ЦПМСД № 1 дніпровського р\"","КНП \"ЦПМСД № 3 дніпро\"","КНП \"ЦПМСД № 4 дніпров\"","Русанівка","КНП \"ЦПМСД № 2\"оболонського","КНП \"ЦПМСД № 1\" подольського","КНП \"ЦПМСД № 2\" подольского","КНП \"ЦПМСД № 1\" святошинського","КНП \"ЦПМСД № 2\"святошинського","КНП \"ЦПМСД № 3\"святошинського","КНП \"ЦПМСД № 1\" соломянського","КНП \"ЦПМСД № 2\" соломянського","КНП \"ЦПМСД № 1\" шевченківського","КНП \"ЦПМСД № 2\" шевченківського","КНП \"ЦПМСД № 3\" шевченкивського","розшифровка І квартал"],"not_rendered":{"charts":0,"images":0,"macros":1,"external_links":0,"defined_names":22,"comments":0,"pivot_tables":0},"unopened":[],"bounds":{"document_bytes":16777216,"sheet_cells":100000,"rows_first":2000,"rows_last":500,"rows_between":2000,"halvings":0,"cell_chars":16384,"cell_head_chars":4096},"cells_cut":0,"cells_raw":0,"read":"whole","date_system":"1900"}

{"sheet":"Лист2","index":0,"n_rows":0,"n_cols":0,"rows_kept":0,"cut":false,"hidden":false,"merged":[]}

{"sheet":"КНП \"ЦПМСД № 2\"","index":1,"n_rows":56,"n_cols":13,"rows_kept":56,"cut":false,"hidden":false,"merged":[[52,6,52,7],[54,6,54,7],[2,1,2,9],[3,0,3,10],[4,0,5,0],[4,1,5,1],[4,2,4,4],[4,5,5,5],[4,6,4,9],[4,10,5,10]]}
[null,null,null,null,null,null,null,null,null,null,null,null,"          Додаток до листа"]
[null,null,null,null,null,null,null,null,null,null,null,null,"             від ________ 2018 № ______"]
[null,"ІНФОРМАЦІЯ                                                                                                                                                                                                                                                                                                                                                                                                                про надходження і використання благодійних пожертв від фізичних та юридичних осіб                                                                                                                                                     КНП \"ЦПМСД №2\" за 1квартал 2018року "]
["                                                                                                                                            найменування закладу охорони здоров′я"]
["№ пп","Найменування юридичної особи (або позначення фізичної особи)","Благодійні пожертви, що були отримані закладом охорони здоров'я від фізичних та юридичних осіб",null,null,"Всього отримано благодійних пожертв, тис. грн","Використання закладом охорони здоров'я благодійних пожертв, отриманих у грошовій (товари і послуг) формі",null,null,null,"Залишок невикористаних грошових коштів, товарів та послуг на кінець звітного періоду, тис. грн"]
[null,null,"В грошовій форм, тис. грн","В  натуральній формі (товари і послуги), тис. грн","Перелік товарів і послуг в натуральній формі (канцтовари, господарські товари, будівельні товари, медикаменти та перев'язувальні матеріали, продукти харчування, м\"який інвентар, основні засоби та інші)",null,"Напрямки використання у грошовій формі (стаття витрат)","Сума, тис. грн","Перелік використаних товарів та послуг у натуральній формі  (канцтовари, господарські товари, будівельні товари, медикаменти та перев'язувальні матеріали, продукти харчування, м\"який інвентар, основні засоби та інші)","Сума, тис. грн"]
[1,"КП \"КЖСЕ\"",31.07,null,"господарські товари ",{"$f":"SUM(C7,D7)","v":31.07},null,null,"господарські товари ",null,115.83]
[2,"ТОВ \"Лайфселл\"",3,null,"канцтовари",{"$f":"SUM(C8,D8)","v":3},null,null,"канцтовари"]
[3,"ПрАТ\"Київстар\"",2,null,"м\"який інвентар",2,null,null,"м\"який інвентар"]
[null,null,null,null,"медикаменти",0,null,null,"медикаменти",548.02]
[null,null,null,null,"продукти харчування",0,null,null,"продукти харчування"]
[4,"Фізична особа",18.3,null,null,18.3,2210,null,"канцтовари"]
[null,null,null,null,null,0,2240,1.84,"судовий збір"]
[5,"Централізовані",null,null,null,0,2240,0.2,"комісія банка"]
[null,"поставки МОЗ",null,548.02,null,548.02]
[null,"вакціна",null,null,null,0]
[null,null,null,null,null,0]
[null,null,null,null,null,0]
[null,null,null,null,null,0]
[null,null,null,null,null,0]
[null,null,null,null,null,0]
[null,null,null,null,null,0]
[null,null,null,null,null,0]
[null,null,null,null,null,0]
[null,null,null,null,null,0]
[null,null,null,null,null,0]
[null,null,null,null,null,0]
[null,null,null,null,null,0]
[null,null,null,null,null,0]
[null,null,null,null,null,0]
[null,null,null,null,null,0]
[null,null,null,null,null,0]
[null,null,null,null,null,0]
[null,null,null,null,null,0]
[null,null,null,null,null,0]
[null,null,null,null,null,0]
[null,null,null,null,null,0]
[null,null,null,null,null,0]
[null,null,null,null,null,0]
[null,null,null,null,null,0]
[null,null,null,null,null,0]
[null,null,null,null,null,0]
[null,null,null,null,null,0]
[null,null,null,null,null,0]
[null,null,null,null,null,0]
[null,null,null,null,null,0]
[null,null,null,null,null,0]
[null,null,null,null,null,0]
[null,null,null,null,null,0]
[null,"ВСЬОГО по закладу",{"$f":"SUM(C7:C49)","v":54.370000000000005},{"$f":"SUM(D7:D49)","v":548.02},null,602.39,null,{"$f":"SUM(H7:H49)","v":2.04},null,{"$f":"SUM(J7:J49)","v":548.02},{"$f":"C50-H50","v":52.330000000000005}]
[]
[]
[null,"Керівник установи",null,null,null,null,"Лось Г.М."]
[null,null,null,null,null,"(підпис)           (ініціали і прізвище) "]
[null,"Головний бухгалтер",null,null,null,null,"Софіенко О.І."]
[null,null,null,null,null,"(підпис)           (ініціали і прізвище) "]

{"sheet":"КНП \"ЦПМСД № 1\"","index":2,"n_rows":56,"n_cols":13,"rows_kept":56,"cut":false,"hidden":false,"merged":[[52,6,52,7],[54,6,54,7],[2,1,2,9],[3,0,3,10],[4,0,5,0],[4,1,5,1],[4,2,4,4],[4,5,5,5],[4,6,4,9],[4,10,5,10]]}
[null,null,null,null,null,null,null,null,null,null,null,null,"Додаток до листа ДОЗ"]
[null,null,null,null,null,null,null,null,null,null,null,null," від 20.03.2018 № 061-3416"]
[null,"ІНФОРМАЦІЯ                                                                                                                                                                                                                                                                                                                                                                                                                    про надходження і використання благодійних пожертв від фізичних та юридичних осіб                                                                                                                                                     КНП \"Центр первинної медико-санітарної допомоги № 1 Дарницького району м.Києва\" за І квартал 2018 року "]
["                                                                                                                                            найменування закладу охорони здоров′я"]
["№ з/п","Найменування юридичної особи (або позначення фізичної особи)","Благодійні пожертви, що були отримані закладом охорони здоров'я від фізичних та юридичних осіб",null,null,"Всього отримано благодійних пожертв, тис. грн","Використання закладом охорони здоров'я благодійних пожертв, отриманих у грошовій (товари і послуг) формі",null,null,null,"Залишок невикористаних грошових коштів, товарів та послуг на кінець звітного періоду,            тис. грн"]
[null,null,"В грошовій формі, тис. грн","В  натуральній формі (товари і послуги),    тис. грн","Перелік товарів і послуг в натуральній формі (канцтовари, господарські товари, будівельні товари, медикаменти та перев'язувальні матеріали, продукти харчування, м\"який інвентар, основні засоби та інші)",null,"Напрямки використання у грошовій формі (стаття витрат)","Сума,          тис. грн","Перелік використаних товарів та послуг у натуральній формі  (канцтовари, господарські товари, будівельні товари, медикаменти та перев'язувальні матеріали, продукти харчування, м\"який інвентар, основні засоби та інші)","Сума,          тис. грн"]
[1,"Фізичні особи",27.443000000000001,0,null,{"$f":"SUM(C7,D7)","v":27.443000000000001},2230,9.4260000000000002,null,0]
[null,null,null,null,null,{"$f":"SUM(C8,D8)","v":0}]
[null,null,null,null,null,0]
[null,null,null,null,null,0]
[null,null,null,null,null,0]
[null,null,null,null,null,0]
[null,null,null,null,null,0]
[null,null,null,null,null,0]
[null,null,null,null,null,0]
[null,null,null,null,null,0]
[null,null,null,null,null,0]
[null,null,null,null,null,0]
[null,null,null,null,null,0]
[null,null,null,null,null,0]
[null,null,null,null,null,0]
[null,null,null,null,null,0]
[null,null,null,null,null,0]
[null,null,null,null,null,0]
[null,null,null,null,null,0]
[null,null,null,null,null,0]
[null,null,null,null,null,0]
[null,null,null,null,null,0]
[null,null,null,null,null,0]
[null,null,null,null,null,0]
[null,null,null,null,null,0]
[null,null,null,null,null,0]
[null,null,null,null,null,0]
[null,null,null,null,null,0]
[null,null,null,null,null,0]
[null,null,null,null,null,0]
[null,null,null,null,null,0]
[null,null,null,null,null,0]
[null,null,null,null,null,0]
[null,null,null,null,null,0]
[null,null,null,null,null,0]
[null,null,null,null,null,0]
[null,null,null,null,null,0]
[null,null,null,null,null,0]
[null,null,null,null,null,0]
[null,null,null,null,null,0]
[null,null,null,null,null,0]
[null,null,null,null,null,0]
[null,null,null,null,null,0]
[null,"ВСЬОГО по закладу",{"$f":"SUM(C7:C49)","v":27.443000000000001},{"$f":"SUM(D7:D49)","v":0},null,27.443000000000001,null,{"$f":"SUM(H7:H49)","v":9.4260000000000002},null,{"$f":"SUM(J7:J49)","v":0},{"$f":"C50-H50","v":18.017000000000003}]
[]
[]
[null,"Керівник установи",null,null,null,null,"А.А. Горбач"]
[null,null,null,null,null,"(підпис)           (ініціали і прізвище) "]
[null,"Головний бухгалтер",null,null,null,null,"Т.М. Федорчук"]
[null,null,null,null,null,"(підпис)           (ініціали і прізвище) "]

{"sheet":"КНП \"ЦПМСД № 2.1\"","index":3,"n_rows":28,"n_cols":11,"rows_kept":28,"cut":false,"hidden":false,"merged":[[20,6,20,7],[22,6,22,7],[0,1,0,9],[1,0,1,10],[2,0,3,0],[2,1,3,1],[2,2,2,4],[2,5,3,5],[2,6,2,9],[2,10,3,10]]}
[null,"ІНФОРМАЦІЯ                                                                                                                                                                                                                                                                                                                                                                                                                    про надходження і використання благодійних пожертв від фізичних та юридичних осіб                                                                                                                                                     по  КНП \"ЦПМСД №2\" Дарницького району м.Києва за І квартал 2018 року "]
["                                                                                                                                      "]
["№ пп","Найменування юридичної особи (або позначення фізичної особи)","Благодійні пожертви, що були отримані закладом охорони здоров'я від фізичних та юридичних осіб",null,null,"Всього отримано благодійних пожертв, тис. грн","Використання закладом охорони здоров'я благодійних пожертв, отриманих у грошовій (товари і послуг) формі",null,null,null,"Залишок невикористаних грошових коштів, товарів та послуг на кінець звітного періоду,            тис. грн"]
[null,null,"В грошовій форм, тис. грн","В  натуральній формі (товари і послуги),    тис. грн","Перелік товарів і послуг в натуральній формі (канцтовари, господарські товари, будівельні товари, медикаменти та перев'язувальні матеріали, продукти харчування, м\"який інвентар, основні засоби та інші)",null,"Напрямки використання у грошовій формі (стаття витрат)","Сума,          тис. грн","Перелік використаних товарів та послуг у натуральній формі  (канцтовари, господарські товари, будівельні товари, медикаменти та перев'язувальні матеріали, продукти харчування, м\"який інвентар, основні засоби та інші)","Сума,          тис. грн"]
[null,"БО\"Маніп.лік.каса\" ",null,1.0239400000000001,"Шприц  2мл,Серветка спиртова №100          ",{"$f":"SUM(C5,D5)","v":1.0239400000000001},null,null,"Шприц  2мл,Серветка спиртова №100          ",1.0239400000000001]
[null,"ФОП Сафарова Н.Г. ",null,0.85,"Шприц  2мл",{"$f":"SUM(C6,D6)","v":0.85},null,null,"Шприц  2мл",0.85]
[null,"Чеботарьова С.М. ",null,0.68,"Шприц  2мл",0.68,null,null,"Шприц  2мл",0.68]
[null,"Мартинов С.В. ",null,0.68,"Шприц  2мл",0.68,null,null,"Шприц  2мл",0.68]
[null,"Бондарєва Л.В.",null,0.51,"Шприц  2мл",0.51,null,null,"Шприц  2мл",0.51]
[null,"Шинкарчук Н.Г. ",null,0.68,"Шприц  2мл",0.68,null,null,"Шприц  2мл",0.68]
[null,"ФОП Тихончук ",null,0.85,"Шприц  2мл",0.85,null,null,"Шприц  2мл",0.85]
[null,"Компанія \"ФАРМ-СОЮЗ\" ",null,0.89100000000000001,"Шприц  2мл",0.89100000000000001,null,null,"Шприц  2мл",0.89100000000000001]
[null,"Софієва Т.В. ",null,0.87404999999999999,"Шприц  2мл",0.87404999999999999,null,null,"Шприц  2мл",0.87404999999999999]
[null,"Грушова О.А. ",null,0.875,"Шприц  2мл",0.875,null,null,"Шприц  2мл",0.875]
[null,"ТОВ \"Діомед Т\" ",null,0.75,"Шприц  2мл",0.75,null,null,"Шприц  2мл",0.75]
[null,"Фізична особа",35.518999999999998,null,null,35.518999999999998,2210,6.57]
[null,null,null,null,null,0,2240,5.33]
[null,"ВСЬОГО по закладу",{"$f":"SUM(C5:C17)","v":35.518999999999998},{"$f":"SUM(D5:D17)","v":8.6639900000000001},null,44.182989999999997,null,{"$f":"SUM(H5:H17)","v":11.9},null,{"$f":"SUM(J5:J17)","v":8.6639900000000001},{"$f":"C18-H18","v":23.619}]
[]
[]
[null,"Директор",null,null,null,null,"Алентьєва Л.І."]
[null,null,null,null,null,"(підпис)           (ініціали і прізвище) "]
[null,"Головний бухгалтер",null,null,null,null,"Панченко З.П."]
[null,null,null,null,null,"(підпис)           (ініціали і прізвище) "]
[]
[]
[null,"Виконавець: Зайченко О.І."]
[null,"                          Волос  Л.В."]

{"sheet":"КНП \"ЦПМСД № 3\"","index":4,"n_rows":42,"n_cols":13,"rows_kept":42,"cut":false,"hidden":false,"merged":[[38,6,38,7],[40,6,40,7],[2,1,2,9],[3,0,3,10],[4,0,5,0],[4,1,5,1],[4,2,4,4],[4,5,5,5],[4,6,4,9],[4,10,5,10]]}
[null,null,null,null,null,null,null,null,null,null,null,null,"          Додаток до листа"]
[null,null,null,null,null,null,null,null,null,null,null,null,"             від ________ 2018 № ______"]
[null,"ІНФОРМАЦІЯ                                                                                                                                                                                                                                                                                                                                                                                                                    про надходження і використання благодійних пожертв від фізичних та юридичних осіб                                                                                                                                                      КНП \"Центр первинної медико-санітарної допомоги №3\" Дарницького району м. Києва за 1 квартал 2018 року "]
["                                                                                                                                            найменування закладу охорони здоров′я"]
["№ п/п","Найменування юридичної особи (або позначення фізичної особи)","Благодійні пожертви, що були отримані закладом охорони здоров'я від фізичних та юридичних осіб",null,null,"Всього отримано благодійних пожертв, тис. грн","Використання закладом охорони здоров'я благодійних пожертв, отриманих у грошовій (товари і послуг) формі",null,null,null,"Залишок невикористаних грошових коштів, товарів та послуг на кінець звітного періоду,            тис. грн"]
[null,null,"В грошовій форм, тис. грн","В  натуральній формі (товари і послуги),    тис. грн","Перелік товарів і послуг в натуральній формі (канцтовари, господарські товари, будівельні товари, медикаменти та перев'язувальні матеріали, продукти харчування, м\"який інвентар, основні засоби та інші)",null,"Напрямки використання у грошовій формі (стаття витрат)","Сума,          тис. грн","Перелік використаних товарів та послуг у натуральній формі  (канцтовари, господарські товари, будівельні товари, медикаменти та перев'язувальні матеріали, продукти харчування, м\"який інвентар, основні засоби та інші)","Сума,          тис. грн"]
[1,"Фізичні особи",36.450000000000003,null,null,{"$f":"SUM(C7,D7)","v":36.450000000000003},2210,0.42,"господарчі товари"]
[null,null,null,null,null,{"$f":"SUM(C8,D8)","v":0},2210,1.41,"канцтовари"]
[null,null,null,null,null,0,2220,2.77,"медикаменти"]
[null,null,null,null,null,0,2240,1,"інтернет"]
[null,null,null,null,null,0,2240,3.8,"послуги зв\"язку"]
[null,null,null,null,null,0,2240,1.01,"заправка картриджів"]
[null,null,null,null,null,0,2240,2.65,"супровід програм.забезпечення"]
[null,null,null,null,null,0]
[null,null,null,null,null,0]
[null,null,null,null,null,0]
[null,null,null,null,null,0]
[null,null,null,null,null,0]
[null,null,null,null,null,0]
[null,null,null,null,null,0]
[null,null,null,null,null,0]
[null,null,null,null,null,0]
[null,null,null,null,null,0]
[null,null,null,null,null,0]
[null,null,null,null,null,0]
[null,null,null,null,null,0]
[null,null,null,null,null,0]
[null,null,null,null,null,0]
[null,null,null,null,null,0]
[null,null,null,null,null,0]
[null,null,null,null,null,0]
[null,null,null,null,null,0]
[null,null,null,null,null,0]
[null,null,null,null,null,0]
[null,null,null,null,null,0]
[null,"ВСЬОГО по закладу",{"$f":"SUM(C7:C35)","v":36.450000000000003},{"$f":"SUM(D7:D35)","v":0},null,36.450000000000003,null,{"$f":"SUM(H7:H35)","v":13.059999999999999},null,{"$f":"SUM(J7:J35)","v":0},{"$f":"C36-H36","v":23.390000000000004}]
[]
[]
[null,"Керівник установи",null,null,null,null,"Я.Л. Швейгер"]
[null,null,null,null,null,"(підпис)           (ініціали і прізвище) "]
[null,"Головний бухгалтер",null,null,null,null,"Г.М. Булатова"]
[null,null,null,null,null,"(підпис)           (ініціали і прізвище) "]

{"sheet":"КНП \"ЦПМСД № 1 деснянского\"","index":5,"n_rows":25,"n_cols":13,"rows_kept":25,"cut":false,"hidden":false,"merged":[[21,6,21,7],[23,6,23,7],[2,1,2,9],[3,0,3,10],[4,0,5,0],[4,1,5,1],[4,2,4,4],[4,5,5,5],[4,6,4,9],[4,10,5,10]]}
[null,null,null,null,null,null,null,null,null,null,null,null,"          Додаток до листа"]
[null,null,null,null,null,null,null,null,null,null,null,null,"             від ________ 2018 № ______"]
[null,"ІНФОРМАЦІЯ                                                                                                                                                                                                                                                                                                                                                                                                                    про надходження і використання благодійних пожертв від фізичних та юридичних осіб                                                                                                                                                     КНП \"ЦПМСД №1\" Деснянського району м.Києва за 1 квартал 2018 року "]
["                                                                                                                                            найменування закладу охорони здоров′я"]
["№ пп","Найменування юридичної особи (або позначення фізичної особи)","Благодійні пожертви, що були отримані закладом охорони здоров'я від фізичних та юридичних осіб",null,null,"Всього отримано благодійних пожертв, тис. грн","Використання закладом охорони здоров'я благодійних пожертв, отриманих у грошовій (товари і послуг) формі",null,null,null,"Залишок невикористаних грошових коштів, товарів та послуг на кінець звітного періоду,            тис. грн"]
[null,null,"В грошовій форм, тис. грн","В  натуральній формі (товари і послуги),    тис. грн","Перелік товарів і послуг в натуральній формі (канцтовари, господарські товари, будівельні товари, медикаменти та перев'язувальні матеріали, продукти харчування, м\"який інвентар, основні засоби та інші)",null,"Напрямки використання у грошовій формі (стаття витрат)","Сума,          тис. грн","Перелік використаних товарів та послуг у натуральній формі  (канцтовари, господарські товари, будівельні товари, медикаменти та перев'язувальні матеріали, продукти харчування, м\"який інвентар, основні засоби та інші)","Сума,          тис. грн"]
[1,"Фізична особа",24.4,0,0,{"$f":"SUM(C7,D7)","v":24.4},2210,6.03]
[null,null,null,null,null,{"$f":"SUM(C8,D8)","v":0},2240,0.54]
[null,null,null,null,null,0]
[null,null,null,null,null,0]
[null,null,null,null,null,0]
[null,null,null,null,null,0]
[null,null,null,null,null,0]
[null,null,null,null,null,0]
[null,null,null,null,null,0]
[null,null,null,null,null,0]
[null,null,null,null,null,0]
[null,null,null,null,null,0]
[null,"ВСЬОГО по закладу",{"$f":"SUM(C7:C18)","v":24.4},{"$f":"SUM(D7:D18)","v":0},null,24.4,null,{"$f":"SUM(H7:H18)","v":6.57},null,{"$f":"SUM(J7:J18)","v":0},{"$f":"C19-H19","v":17.829999999999998}]
[]
[]
[null,"Керівник установи",null,null,null,null,"Батін В.О."]
[null,null,null,null,null,"(підпис)           (ініціали і прізвище) "]
[null,"Головний бухгалтер",null,null,null,null,"Якименко Г.В."]
[null,null,null,null,null,"(підпис)           (ініціали і прізвище) "]

{"sheet":"КНП \"ЦПМСД № 3.1\"","index":6,"n_rows":56,"n_cols":13,"rows_kept":56,"cut":false,"hidden":false,"merged":[[52,6,52,7],[54,6,54,7],[2,1,2,9],[3,0,3,10],[4,0,5,0],[4,1,5,1],[4,2,4,4],[4,5,5,5],[4,6,4,9],[4,10,5,10]]}
[null,null,null,null,null,null,null,null,null,null,null,null,"          Додаток до листа"]
[null,null,null,null,null,null,null,null,null,null,null,null,"             від ________ 2018 № ______"]
[null,"ІНФОРМАЦІЯ                                                                                                                                                                                                                                                                                                                                                                                                                    про надходження і використання благодійних пожертв від фізичних та юридичних осіб                                                                                                                                                     по КНП ЦПМСД №3 Деснянського району м. Києва  за І квартал 2018 року "]
["                                                                                                                                            найменування закладу охорони здоров′я"]
["№ пп","Найменування юридичної особи (або позначення фізичної особи)","Благодійні пожертви, що були отримані закладом охорони здоров'я від фізичних та юридичних осіб",null,null,"Всього отримано благодійних пожертв, тис. грн","Використання закладом охорони здоров'я благодійних пожертв, отриманих у грошовій (товари і послуг) формі",null,null,null,"Залишок невикористаних грошових коштів, товарів та послуг на кінець звітного періоду,            тис. грн"]
[null,null,"В грошовій форм, тис. грн","В  натуральній формі (товари і послуги),    тис. грн","Перелік товарів і послуг в натуральній формі (канцтовари, господарські товари, будівельні товари, медикаменти та перев'язувальні матеріали, продукти харчування, м\"який інвентар, основні засоби та інші)",null,"Напрямки використання у грошовій формі (стаття витрат)","Сума,          тис. грн","Перелік використаних товарів та послуг у натуральній формі  (канцтовари, господарські товари, будівельні товари, медикаменти та перев'язувальні матеріали, продукти харчування, м\"який інвентар, основні засоби та інші)","Сума,          тис. грн"]
[1,"Фізична особа",45.5,null,null,{"$f":"SUM(C7,D7)","v":45.5},2220,5.9,"медикаменти"]
[null,null,null,null,null,{"$f":"SUM(C8,D8)","v":0},2730,7.7,"відш.безкошт.лік.зас"]
[null,null,null,null,null,0,3110,12,"багатофункц.принтер"]
[null,null,null,null,null,0]
[null,null,null,null,null,0]
[null,null,null,null,null,0]
[null,null,null,null,null,0]
[null,null,null,null,null,0]
[null,null,null,null,null,0]
[null,null,null,null,null,0]
[null,null,null,null,null,0]
[null,null,null,null,null,0]
[null,null,null,null,null,0]
[null,null,null,null,null,0]
[null,null,null,null,null,0]
[null,null,null,null,null,0]
[null,null,null,null,null,0]
[null,null,null,null,null,0]
[null,null,null,null,null,0]
[null,null,null,null,null,0]
[null,null,null,null,null,0]
[null,null,null,null,null,0]
[null,null,null,null,null,0]
[null,null,null,null,null,0]
[null,null,null,null,null,0]
[null,null,null,null,null,0]
[null,null,null,null,null,0]
[null,null,null,null,null,0]
[null,null,null,null,null,0]
[null,null,null,null,null,0]
[null,null,null,null,null,0]
[null,null,null,null,null,0]
[null,null,null,null,null,0]
[null,null,null,null,null,0]
[null,null,null,null,null,0]
[null,null,null,null,null,0]
[null,null,null,null,null,0]
[null,null,null,null,null,0]
[null,null,null,null,null,0]
[null,null,null,null,null,0]
[null,null,null,null,null,0]
[null,null,null,null,null,0]
[null,null,null,null,null,0]
[null,"ВСЬОГО по закладу",{"$f":"SUM(C7:C49)","v":45.5},{"$f":"SUM(D7:D49)","v":0},null,45.5,null,{"$f":"SUM(H7:H49)","v":25.6},null,{"$f":"SUM(J7:J49)","v":0},{"$f":"C50-H50","v":19.899999999999999}]
[]
[]
[null,"Керівник установи",null,null,null,null,"О.В. Шугалевич"]
[null,null,null,null,null,"(підпис)           (ініціали і прізвище) "]
[null,"Головний бухгалтер",null,null,null,null,"О.В. Молодих"]
[null,null,null,null,null,"(підпис)           (ініціали і прізвище) "]

{"sheet":"КНП \"ЦПМСД № 4\"","index":7,"n_rows":59,"n_cols":13,"rows_kept":59,"cut":false,"hidden":false,"merged":[[52,6,52,7],[54,6,54,7],[2,1,2,9],[3,0,3,10],[4,0,5,0],[4,1,5,1],[4,2,4,4],[4,5,5,5],[4,6,4,9],[4,10,5,10]]}
[null,null,null,null,null,null,null,null,null,null,null,null,"          Додаток до листа"]
[null,null,null,null,null,null,null,null,null,null,38960345,null,"             від ________ 2018 № ______"]
[null,"ІНФОРМАЦІЯ                                                                                                                                                                                                                                                                                                                                                                                                                    про надходження і використання благодійних пожертв від фізичних та юридичних осіб                                                                                                                                                     КНП \"ЦПМСД №4\" Деснянського р-ну м.Києва за 1 квартал 2018року "]
["                                                                                                                                            найменування закладу охорони здоров′я"]
["№ пп","Найменування юридичної особи (або позначення фізичної особи)","Благодійні пожертви, що були отримані закладом охорони здоров'я від фізичних та юридичних осіб",null,null,"Всього отримано благодійних пожертв, тис. грн","Використання закладом охорони здоров'я благодійних пожертв, отриманих у грошовій (товари і послуг) формі",null,null,null,"Залишок невикористаних грошових коштів, товарів та послуг на кінець звітного періоду,            тис. грн"]
[null,null,"В грошовій форм, тис. грн","В  натуральній формі (товари і послуги),    тис. грн","Перелік товарів і послуг в натуральній формі (канцтовари, господарські товари, будівельні товари, медикаменти та перев'язувальні матеріали, продукти харчування, м\"який інвентар, основні засоби та інші)",null,"Напрямки використання у грошовій формі (стаття витрат)","Сума,          тис. грн","Перелік використаних товарів та послуг у натуральній формі  (канцтовари, господарські товари, будівельні товари, медикаменти та перев'язувальні матеріали, продукти харчування, м\"який інвентар, основні засоби та інші)","Сума,          тис. грн"]
[1,"Фізичні особи",20,null,null,{"$f":"SUM(C7,D7)","v":20},2210,20]
[null,null,null,null,null,{"$f":"SUM(C8,D8)","v":0}]
[null,null,null,null,null,0]
[null,null,null,null,null,0]
[null,null,null,null,null,0]
[null,null,null,null,null,0]
[null,null,null,null,null,0]
[null,null,null,null,null,0]
[null,null,null,null,null,0]
[null,null,null,null,null,0]
[null,null,null,null,null,0]
[null,null,null,null,null,0]
[null,null,null,null,null,0]
[null,null,null,null,null,0]
[null,null,null,null,null,0]
[null,null,null,null,null,0]
[null,null,null,null,null,0]
[null,null,null,null,null,0]
[null,null,null,null,null,0]
[null,null,null,null,null,0]
[null,null,null,null,null,0]
[null,null,null,null,null,0]
[null,null,null,null,null,0]
[null,null,null,null,null,0]
[null,null,null,null,null,0]
[null,null,null,null,null,0]
[null,null,null,null,null,0]
[null,null,null,null,null,0]
[null,null,null,null,null,0]
[null,null,null,null,null,0]
[null,null,null,null,null,0]
[null,null,null,null,null,0]
[null,null,null,null,null,0]
[null,null,null,null,null,0]
[null,null,null,null,null,0]
[null,null,null,null,null,0]
[null,null,null,null,null,0]
[null,null,null,null,null,0]
[null,null,null,null,null,0]
[null,null,null,null,null,0]
[null,null,null,null,null,0]
[null,null,null,null,null,0]
[null,null,null,null,null,0]
[null,"ВСЬОГО по закладу",{"$f":"SUM(C7:C49)","v":20},{"$f":"SUM(D7:D49)","v":0},null,20,null,{"$f":"SUM(H7:H49)","v":20},null,{"$f":"SUM(J7:J49)","v":0},{"$f":"C50-H50","v":0}]
[]
[]
[null,"В.о.директора",null,null,null,null,"Петришина Г.В."]
[null,null,null,null,null,"(підпис)           (ініціали і прізвище) "]
[null,"Головний бухгалтер",null,null,null,null,"Житніковська Г.М."]
[null,null,null,null,null,"(підпис)           (ініціали і прізвище) "]
[]
[null,"Виконавець: Павленко Т.Б"]
[null,"532-00-91"]

{"sheet":"КНП \"ЦПМСД № 1 дніпровського\"","index":8,"n_rows":56,"n_cols":13,"rows_kept":56,"cut":false,"hidden":false,"merged":[[52,6,52,7],[54,6,54,7],[2,1,2,9],[3,0,3,10],[4,0,5,0],[4,1,5,1],[4,2,4,4],[4,5,5,5],[4,6,4,9],[4,10,5,10]]}
[null,null,null,null,null,null,null,null,null,null,null,null,"          Додаток до листа"]
[null,null,null,null,null,null,null,null,null,null,null,null,"             від ________ 2018 № ______"]
[null,"ІНФОРМАЦІЯ                                                                                                                                                                                                                                                                                                                                                                                                                    про надходження і використання благодійних пожертв від фізичних та юридичних осіб                                                                                                                                                       КНП \"Центр первинної  медико - санітарної допомоги №1 Дніпровського району за I  квартал 2018 року "]
["                                                                                                                                            найменування закладу охорони здоров′я"]
["№ пп","Найменування юридичної особи (або позначення фізичної особи)","Благодійні пожертви, що були отримані закладом охорони здоров'я від фізичних та юридичних осіб",null,null,"Всього отримано благодійних пожертв, тис. грн","Використання закладом охорони здоров'я благодійних пожертв, отриманих у грошовій (товари і послуг) формі",null,null,null,"Залишок невикористаних грошових коштів, товарів та послуг на кінець звітного періоду,            тис. грн"]
[null,null,"В грошовій форм, тис. грн","В  натуральній формі (товари і послуги),    тис. грн","Перелік товарів і послуг в натуральній формі (канцтовари, господарські товари, будівельні товари, медикаменти та перев'язувальні матеріали, продукти харчування, м\"який інвентар, основні засоби та інші)",null,"Напрямки використання у грошовій формі (стаття витрат)","Сума,          тис. грн","Перелік використаних товарів та послуг у натуральній формі  (канцтовари, господарські товари, будівельні товари, медикаменти та перев'язувальні матеріали, продукти харчування, м\"який інвентар, основні засоби та інші)","Сума,          тис. грн"]
[1,null,null,null,null,{"$f":"SUM(C7,D7)","v":0}]
[null,null,null,"х","х",{"$f":"SUM(C8,D8)","v":0},"х"]
[null,null,null,null,null,0]
[null,null,null,null,null,0]
[2,null,null,null,null,0]
[null,null,null,"х","х",0,"х"]
[null,null,null,"х","х",0,"х"]
[null,null,null,null,null,0]
[null,null,null,null,null,0]
[null,null,null,null,null,0]
[null,null,null,null,null,0]
[null,null,null,null,null,0]
[null,null,null,null,null,0]
[null,null,null,null,null,0]
[null,null,null,null,null,0]
[null,null,null,null,null,0]
[null,null,null,null,null,0]
[null,null,null,null,null,0]
[null,null,null,null,null,0]
[null,null,null,null,null,0]
[null,null,null,null,null,0]
[null,null,null,null,null,0]
[null,null,null,null,null,0]
[null,null,null,null,null,0]
[null,null,null,null,null,0]
[null,null,null,null,null,0]
[null,null,null,null,null,0]
[null,null,null,null,null,0]
[null,null,null,null,null,0]
[null,null,null,null,null,0]
[null,null,null,null,null,0]
[null,null,null,null,null,0]
[null,null,null,null,null,0]
[null,null,null,null,null,0]
[null,null,null,null,null,0]
[null,null,null,null,null,0]
[null,null,null,null,null,0]
[null,null,null,null,null,0]
[null,null,null,null,null,0]
[null,null,null,null,null,0]
[null,null,null,null,null,0]
[null,null,null,null,null,0]
[null,null,null,null,null,0]
[null,"ВСЬОГО по закладу",{"$f":"SUM(C7:C49)","v":0},{"$f":"SUM(D7:D49)","v":0},null,0,null,{"$f":"SUM(H7:H49)","v":0},null,{"$f":"SUM(J7:J49)","v":0},{"$f":"C50-H50","v":0}]
[]
[]
[null,"Керівник установи"]
[null,null,null,null,null,"(підпис)           (ініціали і прізвище) "]
[null,"Головний бухгалтер"]
[null,null,null,null,null,"(підпис)           (ініціали і прізвище) "]

{"sheet":"КНП \"ЦПМСД № 1 дніпровського р\"","index":9,"n_rows":19,"n_cols":13,"rows_kept":19,"cut":false,"hidden":false,"merged":[[15,6,15,7],[17,6,17,7],[2,1,2,9],[3,0,3,10],[4,0,5,0],[4,1,5,1],[4,2,4,4],[4,5,5,5],[4,6,4,9],[4,10,5,10]]}
[null,null,null,null,null,null,null,null,null,null,null,null,"          Додаток до листа"]
[null,null,null,null,null,null,null,null,null,null,null,null,"             від ________ 2018 № ______"]
[null,"ІНФОРМАЦІЯ                                                                                                                                                                                                                                                                                                                                                                                                                    про надходження і використання благодійних пожертв від фізичних та юридичних осіб                                                                                                                                                     КНП \"ЦПМСД №2  Дніпровського району м. Києва за І квартал 2018 року "]
["                                                                                                                                            найменування закладу охорони здоров′я"]
["№ пп","Найменування юридичної особи (або позначення фізичної особи)","Благодійні пожертви, що були отримані закладом охорони здоров'я від фізичних та юридичних осіб",null,null,"Всього отримано благодійних пожертв, тис. грн","Використання закладом охорони здоров'я благодійних пожертв, отриманих у грошовій (товари і послуг) формі",null,null,null,"Залишок невикористаних грошових коштів, товарів та послуг на кінець звітного періоду,            тис. грн"]
[null,null,"В грошовій форм, тис. грн","В  натуральній формі (товари і послуги),    тис. грн","Перелік товарів і послуг в натуральній формі (канцтовари, господарські товари, будівельні товари, медикаменти та перев'язувальні матеріали, продукти харчування, м\"який інвентар, основні засоби та інші)",null,"Напрямки використання у грошовій формі (стаття витрат)","Сума,          тис. грн","Перелік використаних товарів та послуг у натуральній формі  (канцтовари, господарські товари, будівельні товари, медикаменти та перев'язувальні матеріали, продукти харчування, м\"який інвентар, основні засоби та інші)","Сума,          тис. грн"]
[1,"Фізична особа",2.0779999999999998,null,null,{"$f":"SUM(C7,D7)","v":2.0779999999999998}]
[null,null,null,null,null,{"$f":"SUM(C8,D8)","v":0}]
[null,null,null,null,null,0]
[null,null,null,null,null,0]
[null,null,null,null,null,0]
[null,null,null,null,null,0]
[null,"ВСЬОГО по закладу",{"$f":"SUM(C7:C12)","v":2.0779999999999998},{"$f":"SUM(D7:D12)","v":0},null,2.0779999999999998,null,{"$f":"SUM(H7:H12)","v":0},null,{"$f":"SUM(J7:J12)","v":0},{"$f":"C13-H13","v":2.0779999999999998}]
[]
[]
[null,"Керівник установи",null,null,null,null,"О.А. Квартальний"]
[null,null,null,null,null,"(підпис)           (ініціали і прізвище) "]
[null,"Головний бухгалтер",null,null,null,null,"С.П. Сингаївська"]
[null,null,null,null,null,"(підпис)           (ініціали і прізвище) "]

{"sheet":"КНП \"ЦПМСД № 3 дніпро\"","index":10,"n_rows":56,"n_cols":11,"rows_kept":56,"cut":false,"hidden":false,"merged":[[52,6,52,7],[54,6,54,7],[2,1,2,9],[3,0,3,10],[4,0,5,0],[4,1,5,1],[4,2,4,4],[4,5,5,5],[4,6,4,9],[4,10,5,10]]}
[]
[]
[null,"ІНФОРМАЦІЯ                                                                                                                                                                                                                                                                                                                                                                                                                    про надходження і використання благодійних пожертв від фізичних та юридичних осіб                                                                                                                                                     Комунальне некомерційне підприємство \"Центр первинної медико-санітарної допомоги №3 Дніпровського району м.Києва\" за_1__квартал_2018_року "]
["                                                                                                                                            найменування закладу охорони здоров′я"]
["№ пп","Найменування юридичної особи (або позначення фізичної особи)","Благодійні пожертви, що були отримані закладом охорони здоров'я від фізичних та юридичних осіб",null,null,"Всього отримано благодійних пожертв, тис. грн","Використання закладом охорони здоров'я благодійних пожертв, отриманих у грошовій (товари і послуг) формі",null,null,null,"Залишок невикористаних грошових коштів, товарів та послуг на кінець звітного періоду,            тис. грн"]
[null,null,"В грошовій форм, тис. грн","В  натуральній формі (товари і послуги),    тис. грн","Перелік товарів і послуг в натуральній формі (канцтовари, господарські товари, будівельні товари, медикаменти та перев'язувальні матеріали, продукти харчування, м\"який інвентар, основні засоби та інші)",null,"Напрямки використання у грошовій формі (стаття витрат)","Сума,          тис. грн","Перелік використаних товарів та послуг у натуральній формі  (канцтовари, господарські товари, будівельні товари, медикаменти та перев'язувальні матеріали, продукти харчування, м\"який інвентар, основні засоби та інші)","Сума,          тис. грн"]
[1,"Фізичні особи  195 чол.",13.8,null,null,{"$f":"SUM(C7,D7)","v":13.8},2210,2.5,"Господарські товари",null,11.9]
[2,"ТОВ \"Тедді Віжн\"",0.6,null,null,{"$f":"SUM(C8,D8)","v":0.6}]
[null,null,null,null,null,0]
[null,null,null,null,null,0]
[null,null,null,null,null,0]
[null,null,null,null,null,0]
[null,null,null,null,null,0]
[null,null,null,null,null,0]
[null,null,null,null,null,0]
[null,null,null,null,null,0]
[null,null,null,null,null,0]
[null,null,null,null,null,0]
[null,null,null,null,null,0]
[null,null,null,null,null,0]
[null,null,null,null,null,0]
[null,null,null,null,null,0]
[null,null,null,null,null,0]
[null,null,null,null,null,0]
[null,null,null,null,null,0]
[null,null,null,null,null,0]
[null,null,null,null,null,0]
[null,null,null,null,null,0]
[null,null,null,null,null,0]
[null,null,null,null,null,0]
[null,null,null,null,null,0]
[null,null,null,null,null,0]
[null,null,null,null,null,0]
[null,null,null,null,null,0]
[null,null,null,null,null,0]
[null,null,null,null,null,0]
[null,null,null,null,null,0]
[null,null,null,null,null,0]
[null,null,null,null,null,0]
[null,null,null,null,null,0]
[null,null,null,null,null,0]
[null,null,null,null,null,0]
[null,null,null,null,null,0]
[null,null,null,null,null,0]
[null,null,null,null,null,0]
[null,null,null,null,null,0]
[null,null,null,null,null,0]
[null,null,null,null,null,0]
[null,null,null,null,null,0]
[null,"ВСЬОГО по закладу",{"$f":"SUM(C7:C49)","v":14.4},{"$f":"SUM(D7:D49)","v":0},null,14.4,null,{"$f":"SUM(H7:H49)","v":2.5},null,{"$f":"SUM(J7:J49)","v":0},{"$f":"C50-H50","v":11.9}]
[]
[]
[null,"Керівник установи",null,null,null,null,"О.І.Ністряну"]
[null,null,null,null,null,"(підпис)           (ініціали і прізвище) "]
[null,"Головний бухгалтер",null,null,null,null,"Н.П.Мірошниченко"]
[null,"296-74-59",null,null,null,"(підпис)           (ініціали і прізвище) "]

{"sheet":"КНП \"ЦПМСД № 4 дніпров\"","index":11,"n_rows":24,"n_cols":11,"rows_kept":24,"cut":false,"hidden":false,"merged":[[20,5,20,7],[22,5,22,7],[2,0,2,10],[3,0,3,10],[4,0,5,0],[4,1,5,1],[4,2,4,4],[4,5,5,5],[4,6,4,9],[4,10,5,10]]}
[null,null,null,null,null,null,null,null,null,"Додаток до листа"]
[null,null,null,null,null,null,null,null,null,"від 20.03.2018 р. № 061-3416"]
["ІНФОРМАЦІЯ                                                                                                                                                                                                                                                                                                                                                                                                                    про надходження і використання благодійних пожертв від фізичних та юридичних осіб                                                                                                                                                     Комунального некомерційного підприємства \"Центр первинної медико-санітарної допомоги № 4\" Дніпровського району м. Києва                                                                                      ____за  І   квартал  2018_____року "]
["                                                                                                                                            найменування закладу охорони здоров′я"]
["№ пп","Найменування юридичної особи (або позначення фізичної особи)","Благодійні пожертви, що були отримані закладом охорони здоров'я від фізичних та юридичних осіб",null,null,"Всього отримано благодійних пожертв, тис. грн","Використання закладом охорони здоров'я благодійних пожертв, отриманих у грошовій (товари і послуг) формі",null,null,null,"Залишок невикористаних грошових коштів, товарів та послуг на кінець звітного періоду,            тис. грн"]
[null,null,"В грошовій форм, тис. грн","В  натуральній формі (товари і послуги),                   тис. грн","Перелік товарів і послуг в натуральній формі (канцтовари, господарські товари, будівельні товари, медикаменти та перев'язувальні матеріали, продукти харчування, м\"який інвентар, основні засоби та інші)",null,"Напрямки використання у грошовій формі (стаття витрат)","Сума,                                                                        тис. грн","Перелік використаних товарів та послуг у натуральній формі  (канцтовари, господарські товари, будівельні товари, медикаменти та перев'язувальні матеріали, продукти харчування, м\"який інвентар, основні засоби та інші)","Сума,                          тис. грн"]
[1,"Фізична особа",25.2,null,null,{"$f":"SUM(C7,D7)","v":25.2},2210,0.9,"інформаційна вивіска "]
[null,null,null,null,null,{"$f":"SUM(C8,D8)","v":0},2210,1.6,"періодичні видання"]
[null,null,null,null,null,{"$f":"SUM(C9,D9)","v":0},2240,4.3,"обслуговування програмного забезпечення"]
[null,null,null,null,null,0,2240,0.3,"комісія банку за обслуговування рахунку"]
[null,null,null,null,null,0,2240,7.8,"аудиторські послуги"]
[null,null,null,null,null,0]
[null,null,null,null,null,0]
[null,null,null,null,null,0]
[null,null,null,null,null,0]
[null,null,null,null,null,0]
[null,null,null,null,null,0]
[null,"ВСЬОГО по закладу",{"$f":"SUM(C7:C17)","v":25.2},{"$f":"SUM(D7:D17)","v":0},null,25.2,null,{"$f":"SUM(H7:H17)","v":14.899999999999999},null,{"$f":"SUM(J7:J17)","v":0},{"$f":"C18-H18","v":10.3}]
[]
[]
[null,"Директор",null,null,null,"Н.П.Поліванова"]
[null,null,null,null,null,"                                                          (підпис)           (ініціали і прізвище) "]
[null,"Головний бухгалтер",null,null,null,"Т.М.Осадча"]
[null,null,null,null,null,"                                                       (підпис)           (ініціали і прізвище) "]

{"sheet":"Русанівка","index":12,"n_rows":26,"n_cols":11,"rows_kept":26,"cut":false,"hidden":false,"merged":[[24,6,24,7],[9,0,10,0],[11,0,12,0],[13,0,14,0],[15,0,16,0],[17,0,18,0],[22,6,22,7],[3,0,3,10],[4,0,4,10],[5,0,5,10],[6,0,6,10],[7,0,8,0],[7,1,8,1],[7,2,7,4],[7,5,8,5],[7,6,7,9],[7,10,8,10]]}
[null,null,null,null,null,null,null,null,"Додаток"]
[null,null,null,null,null,null,null,null,"до наказу Міністерства охорони здоров’я України"]
[null,null,null,null,null,null,null,null,"25.07.2017 №848"]
["ІНФОРМАЦІЯ   "]
["про надходження і використання благодійних пожертв від фізичних та юридичних осіб  "]
["Комунальне некомерційне підприємство \"Центр первинної медико-санітарної допомоги \"Русанівка\" Дніпровського району міста Києва\" за І квартал 2018 року"]
[]
["Період","Найменування юридичної особи (або позначення фізичної особи)","Благодійні пожертви, що були отримані закладом охорони здоров'я від фізичних та юридичних осіб",null,null,"Всього отримано благодійних пожертв,\nтис. грн","Використання закладом охорони здоров'я благодійних пожертв, отриманих у грошовій (товари і послуг) формі",null,null,null,"Залишок невикористаних грошових коштів, товарів та послуг на кінець звітного періоду,\nтис. грн"]
[null,null,"В грошовій форм, тис.грн","В натуральній формі (товари і послуги), тис.грн","Перелік товарів і послуг в натуральній формі (канцтовари, господарські товари, будівельні товари, медикаменти та перев'язувальні матеріали, продукти харчування, м\"який інвентар, основні засоби та інші)",null,"Напрямки використання у грошовій формі (стаття витрат)","Сума,\nтис. грн","Перелік використаних товарів та послуг у натуральній формі  (канцтовари, господарські товари, будівельні товари, медикаменти та перев'язувальні матеріали, продукти харчування, м\"який інвентар, основні засоби та інші)","Сума,\n тис. грн"]
["І\nквартал",null,null,null,null,{"$f":"SUM(C10,D10)","v":0}]
[null,"фізичні особи",{"$f":"'розшифровка І квартал'!F102/1000","v":7.84},null,null,{"$f":"SUM(C11,D11)","v":7.84}]
["ІІ\nквартал",null,null,null,null,0]
[null,null,null,null,null,0]
["ІІІ\nквартал",null,null,null,null,0]
[null,null,null,null,null,0]
["ІІІ\nквартал",null,null,null,null,0]
[null,null,null,null,null,0]
["Всього за рік",null,null,null,null,0]
[null,null,null,null,null,0]
[null,"ВСЬОГО по закладу",{"$f":"SUM(C10:C19)","v":7.84},{"$f":"SUM(D10:D19)","v":0},null,7.84,null,{"$f":"SUM(H10:H19)","v":0},null,{"$f":"SUM(J10:J19)","v":0},{"$f":"C20-H20","v":7.84}]
[]
[]
[null,"Керівник установи"]
[null,null,null,null,null,"(підпис)           (ініціали і прізвище) "]
[null,"Головний бухгалтер"]
[null,null,null,null,null,"(підпис)           (ініціали і прізвище) "]

{"sheet":"КНП \"ЦПМСД № 2\"оболонського","index":13,"n_rows":56,"n_cols":13,"rows_kept":56,"cut":false,"hidden":false,"merged":[[52,6,52,7],[53,5,53,7],[54,6,54,7],[55,5,55,7],[2,1,2,9],[3,0,3,10],[4,0,5,0],[4,1,5,1],[4,2,4,4],[4,5,5,5],[4,6,4,9],[4,10,5,10]]}
[null,null,null,null,null,null,null,null,null,null,null,null,"          Додаток до листа"]
[null,null,null,null,null,null,null,null,null,null,null,null,"             від ________ 2018 № ______"]
[null,"ІНФОРМАЦІЯ                                                                                                                                                                                                                                                                                                                                                                                                                про надходження і використання благодійних пожертв від фізичних та юридичних осіб                                                                                                                                                     КНП \"Центр первинної медико-санітарної допомоги №2\" Оболонського району м.Києва за І квартал 2018 року "]
["                                                                                                                                            найменування закладу охорони здоров′я"]
["№ пп","Найменування юридичної особи (або позначення фізичної особи)","Благодійні пожертви, що були отримані закладом охорони здоров'я від фізичних та юридичних осіб",null,null,"Всього отримано благодійних пожертв, тис. грн","Використання закладом охорони здоров'я благодійних пожертв, отриманих у грошовій (товари і послуг) формі",null,null,null,"Залишок невикористаних грошових коштів, товарів та послуг на кінець звітного періоду,            тис. грн"]
[null,null,"В грошовій форм, тис. грн","В  натуральній формі (товари і послуги),    тис. грн","Перелік товарів і послуг в натуральній формі (канцтовари, господарські товари, будівельні товари, медикаменти та перев'язувальні матеріали, продукти харчування, м\"який інвентар, основні засоби та інші)",null,"Напрямки використання у грошовій формі (стаття витрат)","Сума,          тис. грн","Перелік використаних товарів та послуг у натуральній формі  (канцтовари, господарські товари, будівельні товари, медикаменти та перев'язувальні матеріали, продукти харчування, м\"який інвентар, основні засоби та інші)","Сума,          тис. грн"]
[1,"Фізичі  особи",{"$f":"9.37","v":9.3699999999999992},null,null,{"$f":"SUM(C7,D7)","v":9.3699999999999992},2210,0.06,"канцтовари"]
[null,null,null,null,null,{"$f":"SUM(C8,D8)","v":0},2220,2.97,"медикаменти"]
[null,null,null,null,null,0,2240,0.19,"абонплата"]
[null,null,null,null,null,0,2800,1.34,"в доход бюджета"]
[null,null,null,null,null,0]
[null,null,null,null,null,0]
[null,null,null,null,null,0]
[null,null,null,null,null,0]
[null,null,null,null,null,0]
[null,null,null,null,null,0]
[null,null,null,null,null,0]
[null,null,null,null,null,0]
[null,null,null,null,null,0]
[null,null,null,null,null,0]
[null,null,null,null,null,0]
[null,null,null,null,null,0]
[null,null,null,null,null,0]
[null,null,null,null,null,0]
[null,null,null,null,null,0]
[null,null,null,null,null,0]
[null,null,null,null,null,0]
[null,null,null,null,null,0]
[null,null,null,null,null,0]
[null,null,null,null,null,0]
[null,null,null,null,null,0]
[null,null,null,null,null,0]
[null,null,null,null,null,0]
[null,null,null,null,null,0]
[null,null,null,null,null,0]
[null,null,null,null,null,0]
[null,null,null,null,null,0]
[null,null,null,null,null,0]
[null,null,null,null,null,0]
[null,null,null,null,null,0]
[null,null,null,null,null,0]
[null,null,null,null,null,0]
[null,null,null,null,null,0]
[null,null,null,null,null,0]
[null,null,null,null,null,0]
[null,null,null,null,null,0]
[null,null,null,null,null,0]
[null,null,null,null,null,0]
[null,null,null,null,null,0]
[null,"ВСЬОГО по закладу",{"$f":"SUM(C7:C49)","v":9.3699999999999992},{"$f":"SUM(D7:D49)","v":0},null,9.3699999999999992,null,{"$f":"SUM(H7:H49)","v":4.5600000000000005},null,{"$f":"SUM(J7:J49)","v":0},{"$f":"C50-H50","v":4.8099999999999987}]
[]
[]
[null,"Керівник установи",null,"Торпан  В. С."]
[null,null,null,null,null,"(підпис)           (ініціали і прізвище) "]
[null,"Головний бухгалтер",null,"Нешкуренко Н.В."]
[null,null,null,null,null,"(підпис)           (ініціали і прізвище) "]

{"sheet":"КНП \"ЦПМСД № 1\" подольського","index":14,"n_rows":24,"n_cols":13,"rows_kept":24,"cut":false,"hidden":false,"merged":[[20,6,20,7],[22,6,22,7],[2,1,2,9],[3,0,3,10],[4,0,5,0],[4,1,5,1],[4,2,4,4],[4,5,5,5],[4,6,4,9],[4,10,5,10]]}
[null,null,null,null,null,null,null,null,null,null,null,null,"          Додаток до листа"]
[null,null,null,null,null,null,null,null,null,null,null,null,"             від ________ 2018 № ______"]
[null,"ІНФОРМАЦІЯ                                                                                                                                                                                                                                                                                                                                                                                                                    про надходження і використання благодійних пожертв від фізичних та юридичних осіб                                                                                                                                                    КНП \"ЦПМСД №1\" Подільського р-ну м. Києва за 1 квартал 2018 року "]
["                                                                                                                                            найменування закладу охорони здоров′я"]
["№ пп","Найменування юридичної особи (або позначення фізичної особи)","Благодійні пожертви, що були отримані закладом охорони здоров'я від фізичних та юридичних осіб",null,null,"Всього отримано благодійних пожертв, тис. грн","Використання закладом охорони здоров'я благодійних пожертв, отриманих у грошовій (товари і послуг) формі",null,null,null,"Залишок невикористаних грошових коштів, товарів та послуг на кінець звітного періоду,            тис. грн"]
[null,null,"В грошовій форм, тис. грн","В  натуральній формі (товари і послуги),    тис. грн","Перелік товарів і послуг в натуральній формі (канцтовари, господарські товари, будівельні товари, медикаменти та перев'язувальні матеріали, продукти харчування, м\"який інвентар, основні засоби та інші)",null,"Напрямки використання у грошовій формі (стаття витрат)","Сума,          тис. грн","Перелік використаних товарів та послуг у натуральній формі  (канцтовари, господарські товари, будівельні товари, медикаменти та перев'язувальні матеріали, продукти харчування, м\"який інвентар, основні засоби та інші)","Сума,          тис. грн"]
[1,"Фізична особа",10.93,null,null,{"$f":"SUM(C7,D7)","v":10.93},2240,{"$f":"(175+175+175)/1000","v":0.52500000000000002},"послуги звязку ",null,10.58]
[null,null,null,null,null,{"$f":"SUM(C8,D8)","v":0}]
[null,null,null,null,null,0]
[null,null,null,null,null,0]
[null,null,null,null,null,0]
[null,null,null,null,null,0]
[null,null,null,null,null,0]
[null,null,null,null,null,0]
[null,null,null,null,null,0]
[null,null,null,null,null,0]
[null,null,null,null,null,0]
[null,"ВСЬОГО по закладу",{"$f":"SUM(C7:C17)","v":10.93},{"$f":"SUM(D7:D17)","v":0},null,10.93,null,{"$f":"SUM(H7:H17)","v":0.52500000000000002},null,{"$f":"SUM(J7:J17)","v":0},{"$f":"C18-H18","v":10.404999999999999}]
[]
[]
[null,"Керівник установи",null,null,null,null,"Л.М. Вагалюк"]
[null,null,null,null,null,"(підпис)           (ініціали і прізвище) "]
[null,"Головний бухгалтер",null,null,null,null,"Н.П. Мосійчук"]
[null,null,null,null,null,"(підпис)           (ініціали і прізвище) "]

{"sheet":"КНП \"ЦПМСД № 2\" подольского","index":15,"n_rows":21,"n_cols":11,"rows_kept":21,"cut":false,"hidden":false,"merged":[[9,0,10,0],[11,0,12,0],[13,0,14,0],[15,0,16,0],[7,0,8,0],[7,1,8,1],[7,2,7,4],[7,5,8,5],[7,6,7,9],[7,10,8,10],[0,0,0,10],[1,0,1,10],[2,0,2,10],[3,0,3,10],[4,0,4,10],[5,0,5,10]]}
["ІНФОРМАЦІЯ"]
[]
["про надходження і використання благодійних пожертв від фізичних та юридичних осіб"]
["за 1  квартал 2018 року"]
["КНП\"ЦПМСД №2 Подільського р-ну м. Києва"]
["найменування закладу охорони здоров'я"]
[]
["Період","Найменування юридичної особи (або позначення фізичної особи)","Благодійні пожертви, що були отримані закладом охорони здоров'я від фізичних та юридичних осіб",null,null,"Всього отримано благодійних пожертв, тис. грн.","Використання закладом охорони здоров'я благодійних пожертв, отриманих у грошовій та натуральній (товари і послуги) формі",null,null,null,"Залишок невикористаних грошових коштів, товарів та послуг на кінець звітного періоду, тис. грн."]
[null,null,"В грошовій формі, тис. грн.","В натуральній формі (товари і послуги), тис. грн.","Перелік товарів і послуг в натуральній формі",null,"Напрямки використання у грошовій формі (статгя витрат)","Сума, тис. грн.","Перелік використаних товарів та послуг у натуральній формі","Судіа, тис. гри."]
["І квартал","Київський фонд відновлювальної медицини",null,2670.08,"Медикаменти",2670.08,null,null,"Медикаменти",851.83,1818.25]
[null,"БО\"100 відсотків життя. Київський регіон\"","-",60912.45,"Проведення ремонтних робіт",60912.45,null,null,"Проведення ремонтних робіт",60912.45]
["П квартал",null,null,null,null,"0,0",null,null,null,null,"0,0"]
[]
["III квартал",null,null,null,null,"0,0",null,null,null,null,"0,0"]
[]
["IV квартал",null,null,null,null,"0,0",null,null,null,null,"0,0"]
[]
["Всього за рік",null,"0,0","0,0","X","0,0","X","0,0","X","0,0","0,0"]
["Директор",null,null,"Н.П.Білічук"]
[]
["Головний бухгалтер",null,null,"В.А.Сірош"]

{"sheet":"КНП \"ЦПМСД № 1\" святошинського","index":16,"n_rows":16,"n_cols":11,"rows_kept":16,"cut":false,"hidden":false,"merged":[[0,0,0,10],[1,0,1,10],[2,0,2,10],[4,0,5,0],[4,1,5,1],[4,2,4,4],[4,5,5,5],[4,6,4,9],[4,10,5,10]]}
["ІНФОРМАЦІЯ"]
["про надходження і використання благодійних пожертв від фізичних та юридичних осіб"]
["по КНП \"Центр первинної медико-санітарної допомоги №1\" Святошинського р-ну за І квартал 2018 року"]
[]
["№ п/п","Найменування юридичної особи (або позначення фізичної особи)","Благодійні пожертви, що були отримані закладом охорони здоров'я від фізичних та юридичних осіб",null,null,"Всього отримано благодійних пожертв, тис.грн.","Використання закладом охорони здоров'я благодійних пожертв, отриманих у грошовій (товари і послуги) формі",null,null,null,"Залишок невикористаних грошових коштів, товарів та послуг на кінець звітного періоду, тис.грн."]
[null,null,"В грошовій формі, тис.грн","В натуральній формі (товари і послуги), тис.грн","Перелік  товарів і послуг в натуральній формі (канцтовари, господарські товари, будівельні товари, медикаменти та перев'язувальні матеріали, продукти харчування, м'який інвентар, основні засоби та інші)",null,"Напрямки використання у грошовій формі (стаття витрат)","Сума, тис.грн.","Перелік використаних товарів та послуг у натуральній формі (канцтовари, господарські товари, будівельні товари, медикаменти та перев'язувальні матеріали, продукти харчування, м'який інвентар, основні засоби та інші)","Сума, тис.грн."]
[1,"КНП \"Центр первинної медико-санітарної допомоги №1\" Святошинського р-ну м.Києва",3.1,null,null,3.1,"КЕКВ 2240 (оплата послуг - крім комунальних)",0.5,null,null,2.6]
[]
[]
[]
[]
[]
[]
[null,"Директор",null,null,"Подковська Д.Ф."]
[]
[null,"Головний бухгалтер",null,null,"Семенченко Ю.М."]

{"sheet":"КНП \"ЦПМСД № 2\"святошинського","index":17,"n_rows":56,"n_cols":13,"rows_kept":56,"cut":false,"hidden":false,"merged":[[52,6,52,7],[54,6,54,7],[2,1,2,9],[3,0,3,10],[4,0,5,0],[4,1,5,1],[4,2,4,4],[4,5,5,5],[4,6,4,9],[4,10,5,10]]}
[null,null,null,null,null,null,null,null,null,null,null,null,"          Додаток до листа"]
[null,null,null,null,null,null,null,null,null,null,null,null,"             від ________ 2018 № ______"]
[null,"ІНФОРМАЦІЯ                                                                                                                                                                                                                                                                                                                                                                                                                    про надходження і використання благодійних пожертв від фізичних та юридичних осіб                                                                                                                                                      КНП \"Центр первинної медико - санітарної допомоги №2\" Святошинського р-ну м. Києва за 1квартал_ 2018 року "]
["                                                                                                                                            найменування закладу охорони здоров′я"]
["№ пп","Найменування юридичної особи (або позначення фізичної особи)","Благодійні пожертви, що були отримані закладом охорони здоров'я від фізичних та юридичних осіб",null,null,"Всього отримано благодійних пожертв, тис. грн","Використання закладом охорони здоров'я благодійних пожертв, отриманих у грошовій (товари і послуг) формі",null,null,null,"Залишок невикористаних грошових коштів, товарів та послуг на кінець звітного періоду,            тис. грн"]
[null,null,"В грошовій форм, тис. грн","В  натуральній формі (товари і послуги),    тис. грн","Перелік товарів і послуг в натуральній формі (канцтовари, господарські товари, будівельні товари, медикаменти та перев'язувальні матеріали, продукти харчування, м\"який інвентар, основні засоби та інші)",null,"Напрямки використання у грошовій формі (стаття витрат)","Сума,          тис. грн","Перелік використаних товарів та послуг у натуральній формі  (канцтовари, господарські товари, будівельні товари, медикаменти та перев'язувальні матеріали, продукти харчування, м\"який інвентар, основні засоби та інші)","Сума,          тис. грн"]
[1,"Фізичні особи ",43.1,0,0,{"$f":"SUM(C7,D7)","v":43.1},2210,4.8]
[null,null,null,null,null,{"$f":"SUM(C8,D8)","v":0},2240,3.9]
[null,null,null,null,null,0,2240,5.8]
[null,null,null,null,null,0,2240,0.3]
[null,null,null,null,null,0,2240,0.4]
[null,null,null,null,null,0,2240,1.6]
[null,null,null,null,null,0,2240,0.4]
[null,null,null,null,null,0]
[null,null,null,null,null,0]
[null,null,null,null,null,0]
[null,null,null,null,null,0]
[null,null,null,null,null,0]
[null,null,null,null,null,0]
[null,null,null,null,null,0]
[null,null,null,null,null,0]
[null,null,null,null,null,0]
[null,null,null,null,null,0]
[null,null,null,null,null,0]
[null,null,null,null,null,0]
[null,null,null,null,null,0]
[null,null,null,null,null,0]
[null,null,null,null,null,0]
[null,null,null,null,null,0]
[null,null,null,null,null,0]
[null,null,null,null,null,0]
[null,null,null,null,null,0]
[null,null,null,null,null,0]
[null,null,null,null,null,0]
[null,null,null,null,null,0]
[null,null,null,null,null,0]
[null,null,null,null,null,0]
[null,null,null,null,null,0]
[null,null,null,null,null,0]
[null,null,null,null,null,0]
[null,null,null,null,null,0]
[null,null,null,null,null,0]
[null,null,null,null,null,0]
[null,null,null,null,null,0]
[null,null,null,null,null,0]
[null,null,null,null,null,0]
[null,null,null,null,null,0]
[null,null,null,null,null,0]
[null,null,null,null,null,0]
[null,"ВСЬОГО по закладу",{"$f":"SUM(C7:C49)","v":43.1},{"$f":"SUM(D7:D49)","v":0},null,43.1,null,{"$f":"SUM(H7:H49)","v":17.2},null,{"$f":"SUM(J7:J49)","v":0},{"$f":"C50-H50","v":25.900000000000002}]
[]
[]
[null,"Керівник установи",null,null,null,null,"Н. Петрученко"]
[null,null,null,null,null,"(підпис)           (ініціали і прізвище) "]
[null,"Головний бухгалтер",null,null,null,null,"Л. Йовенко"]
[null,null,null,null,null,"(підпис)           (ініціали і прізвище) "]

{"sheet":"КНП \"ЦПМСД № 3\"святошинського","index":18,"n_rows":56,"n_cols":13,"rows_kept":56,"cut":false,"hidden":false,"merged":[[52,6,52,7],[54,6,54,7],[2,1,2,9],[3,0,3,10],[4,0,5,0],[4,1,5,1],[4,2,4,4],[4,5,5,5],[4,6,4,9],[4,10,5,10]]}
[null,null,null,null,null,null,null,null,null,null,null,null,"          Додаток до листа"]
[null,null,null,null,null,null,null,null,null,null,null,null,"             від 20.03.2018 № 061-3416"]
[null,"ІНФОРМАЦІЯ                                                                                                                                                                                                                                                                                                                                                                                                                    про надходження і використання благодійних пожертв від фізичних та юридичних осіб                                                                                                                                                     КНП \"ЦПМСД № 3\" Святошинського району м. Києва за I квартал 2018 року "]
["                                                                                                                                            найменування закладу охорони здоров′я"]
["№ пп","Найменування юридичної особи (або позначення фізичної особи)","Благодійні пожертви, що були отримані закладом охорони здоров'я від фізичних та юридичних осіб",null,null,"Всього отримано благодійних пожертв, тис. грн","Використання закладом охорони здоров'я благодійних пожертв, отриманих у грошовій (товари і послуг) формі",null,null,null,"Залишок невикористаних грошових коштів, товарів та послуг на кінець звітного періоду,            тис. грн"]
[null,null,"В грошовій форм, тис. грн","В  натуральній формі (товари і послуги),    тис. грн","Перелік товарів і послуг в натуральній формі (канцтовари, господарські товари, будівельні товари, медикаменти та перев'язувальні матеріали, продукти харчування, м\"який інвентар, основні засоби та інші)",null,"Напрямки використання у грошовій формі (стаття витрат)","Сума,          тис. грн","Перелік використаних товарів та послуг у натуральній формі  (канцтовари, господарські товари, будівельні товари, медикаменти та перев'язувальні матеріали, продукти харчування, м\"який інвентар, основні засоби та інші)","Сума,          тис. грн"]
[null,null,null,null,null,{"$f":"SUM(C7,D7)","v":0}]
[1,"Благодійні внески",13.5,0,0,{"$f":"SUM(C8,D8)","v":13.5},2210,5.4,null,null,11.5]
[null,null,null,null,null,0,2240,5.5]
[null,null,null,null,null,0]
[null,null,null,null,null,0]
[null,null,null,null,null,0]
[null,null,null,null,null,0]
[null,null,null,null,null,0]
[null,null,null,null,null,0]
[null,null,null,null,null,0]
[null,null,null,null,null,0]
[null,null,null,null,null,0]
[null,null,null,null,null,0]
[null,null,null,null,null,0]
[null,null,null,null,null,0]
[null,null,null,null,null,0]
[null,null,null,null,null,0]
[null,null,null,null,null,0]
[null,null,null,null,null,0]
[null,null,null,null,null,0]
[null,null,null,null,null,0]
[null,null,null,null,null,0]
[null,null,null,null,null,0]
[null,null,null,null,null,0]
[null,null,null,null,null,0]
[null,null,null,null,null,0]
[null,null,null,null,null,0]
[null,null,null,null,null,0]
[null,null,null,null,null,0]
[null,null,null,null,null,0]
[null,null,null,null,null,0]
[null,null,null,null,null,0]
[null,null,null,null,null,0]
[null,null,null,null,null,0]
[null,null,null,null,null,0]
[null,null,null,null,null,0]
[null,null,null,null,null,0]
[null,null,null,null,null,0]
[null,null,null,null,null,0]
[null,null,null,null,null,0]
[null,null,null,null,null,0]
[null,null,null,null,null,0]
[null,null,null,null,null,0]
[null,"ВСЬОГО по закладу",{"$f":"SUM(C7:C49)","v":13.5},{"$f":"SUM(D7:D49)","v":0},null,13.5,null,{"$f":"SUM(H7:H49)","v":10.9},null,{"$f":"SUM(J7:J49)","v":0},{"$f":"C50-H50","v":2.5999999999999996}]
[]
[]
[null,"Керівник установи"]
[null,null,null,null,null,"(підпис)           (ініціали і прізвище) "]
[null,"Головний бухгалтер"]
[null,null,null,null,null,"(підпис)           (ініціали і прізвище) "]

{"sheet":"КНП \"ЦПМСД № 1\" соломянського","index":19,"n_rows":56,"n_cols":13,"rows_kept":56,"cut":false,"hidden":false,"merged":[[52,6,52,7],[54,6,54,7],[2,1,2,9],[3,0,3,10],[4,0,5,0],[4,1,5,1],[4,2,4,4],[4,5,5,5],[4,6,4,9],[4,10,5,10]]}
[null,null,null,null,null,null,null,null,null,null,null,null,"          Додаток до листа"]
[null,null,null,null,null,null,null,null,null,null,null,null,"             від ________ 2018 № ______"]
[null,"ІНФОРМАЦІЯ                                                                                                                                                                                                                                                                                                                                                                                                                    про надходження і використання благодійних пожертв від фізичних та юридичних осіб                                               Комунальне   некомерційне підприємство \"Центр первинної медико-санітарної допомоги №1\" Солом'янського району м.Києва за_І_квартал_2018_року "]
["                                                                                                                                            найменування закладу охорони здоров′я"]
["№ пп","Найменування юридичної особи (або позначення фізичної особи)","Благодійні пожертви, що були отримані закладом охорони здоров'я від фізичних та юридичних осіб",null,null,"Всього отримано благодійних пожертв, тис. грн","Використання закладом охорони здоров'я благодійних пожертв, отриманих у грошовій (товари і послуг) формі",null,null,null,"Залишок невикористаних грошових коштів, товарів та послуг на кінець звітного періоду,            тис. грн"]
[null,null,"В грошовій форм, тис. грн","В  натуральній формі (товари і послуги),    тис. грн","Перелік товарів і послуг в натуральній формі (канцтовари, господарські товари, будівельні товари, медикаменти та перев'язувальні матеріали, продукти харчування, м\"який інвентар, основні засоби та інші)",null,"Напрямки використання у грошовій формі (стаття витрат)","Сума,          тис. грн","Перелік використаних товарів та послуг у натуральній формі  (канцтовари, господарські товари, будівельні товари, медикаменти та перев'язувальні матеріали, продукти харчування, м\"який інвентар, основні засоби та інші)","Сума,          тис. грн"]
[1,"Фізична особа",23.140999999999998,null,null,{"$f":"SUM(C7,D7)","v":23.140999999999998},2240,0.41399999999999998,"комісія банку за обслуговування",null,52.01]
[null,null,null,null,null,{"$f":"SUM(C8,D8)","v":0}]
[null,null,null,null,null,0]
[null,null,null,null,null,0]
[null,null,null,null,null,0]
[null,null,null,null,null,0]
[null,null,null,null,null,0]
[null,null,null,null,null,0]
[null,null,null,null,null,0]
[null,null,null,null,null,0]
[null,null,null,null,null,0]
[null,null,null,null,null,0]
[null,null,null,null,null,0]
[null,null,null,null,null,0]
[null,null,null,null,null,0]
[null,null,null,null,null,0]
[null,null,null,null,null,0]
[null,null,null,null,null,0]
[null,null,null,null,null,0]
[null,null,null,null,null,0]
[null,null,null,null,null,0]
[null,null,null,null,null,0]
[null,null,null,null,null,0]
[null,null,null,null,null,0]
[null,null,null,null,null,0]
[null,null,null,null,null,0]
[null,null,null,null,null,0]
[null,null,null,null,null,0]
[null,null,null,null,null,0]
[null,null,null,null,null,0]
[null,null,null,null,null,0]
[null,null,null,null,null,0]
[null,null,null,null,null,0]
[null,null,null,null,null,0]
[null,null,null,null,null,0]
[null,null,null,null,null,0]
[null,null,null,null,null,0]
[null,null,null,null,null,0]
[null,null,null,null,null,0]
[null,null,null,null,null,0]
[null,null,null,null,null,0]
[null,null,null,null,null,0]
[null,null,null,null,null,0]
[null,"ВСЬОГО по закладу",{"$f":"SUM(C7:C49)","v":23.140999999999998},{"$f":"SUM(D7:D49)","v":0},null,23.140999999999998,null,{"$f":"SUM(H7:H49)","v":0.41399999999999998},null,{"$f":"SUM(J7:J49)","v":0},{"$f":"C50-H50","v":22.726999999999997}]
[]
[]
[null,"Керівник установи",null,null,null,null,"Сваток А.С."]
[null,null,null,null,null,"(підпис)           (ініціали і прізвище) "]
[null,"Головний бухгалтер",null,null,null,null,"Шереметьєва Л.В."]
[null,null,null,null,null,"(підпис)           (ініціали і прізвище) "]

{"sheet":"КНП \"ЦПМСД № 2\" соломянського","index":20,"n_rows":56,"n_cols":13,"rows_kept":56,"cut":false,"hidden":false,"merged":[[52,6,52,7],[54,6,54,7],[2,1,2,9],[3,0,3,10],[4,0,5,0],[4,1,5,1],[4,2,4,4],[4,5,5,5],[4,6,4,9],[4,10,5,10]]}
[null,null,null,null,null,null,null,null,null,null,null,null,"          Додаток до листа"]
[null,null,null,null,null,null,null,null,null,null,null,null,"             від ________ 2018 № ______"]
[null,"ІНФОРМАЦІЯ                                                                                                                                                                                                                                                                                                                                                                                                                    про надходження і використання благодійних пожертв від фізичних та юридичних осіб                                                                                                                                                     КНП \"ЦПМСД №2 \" Солом'янського району за І квартал 2018 року "]
["                                                                                                                                            найменування закладу охорони здоров′я"]
["№ пп","Найменування юридичної особи (або позначення фізичної особи)","Благодійні пожертви, що були отримані закладом охорони здоров'я від фізичних та юридичних осіб",null,null,"Всього отримано благодійних пожертв, тис. грн","Використання закладом охорони здоров'я благодійних пожертв, отриманих у грошовій (товари і послуг) формі",null,null,null,"Залишок невикористаних грошових коштів, товарів та послуг на кінець звітного періоду,            тис. грн"]
[null,null,"В грошовій форм, тис. грн","В  натуральній формі (товари і послуги),    тис. грн","Перелік товарів і послуг в натуральній формі (канцтовари, господарські товари, будівельні товари, медикаменти та перев'язувальні матеріали, продукти харчування, м\"який інвентар, основні засоби та інші)",null,"Напрямки використання у грошовій формі (стаття витрат)","Сума,          тис. грн","Перелік використаних товарів та послуг у натуральній формі  (канцтовари, господарські товари, будівельні товари, медикаменти та перев'язувальні матеріали, продукти харчування, м\"який інвентар, основні засоби та інші)","Сума,          тис. грн"]
["1. ","Фізични особи",10.88,null,null,{"$f":"SUM(C7,D7)","v":10.88}]
[null,null,null,null,null,{"$f":"SUM(C8,D8)","v":0}]
[null,null,null,null,null,0]
[null,null,null,null,null,0]
[null,null,null,null,null,0]
[null,null,null,null,null,0]
[null,null,null,null,null,0]
[null,null,null,null,null,0]
[null,null,null,null,null,0]
[null,null,null,null,null,0]
[null,null,null,null,null,0]
[null,null,null,null,null,0]
[null,null,null,null,null,0]
[null,null,null,null,null,0]
[null,null,null,null,null,0]
[null,null,null,null,null,0]
[null,null,null,null,null,0]
[null,null,null,null,null,0]
[null,null,null,null,null,0]
[null,null,null,null,null,0]
[null,null,null,null,null,0]
[null,null,null,null,null,0]
[null,null,null,null,null,0]
[null,null,null,null,null,0]
[null,null,null,null,null,0]
[null,null,null,null,null,0]
[null,null,null,null,null,0]
[null,null,null,null,null,0]
[null,null,null,null,null,0]
[null,null,null,null,null,0]
[null,null,null,null,null,0]
[null,null,null,null,null,0]
[null,null,null,null,null,0]
[null,null,null,null,null,0]
[null,null,null,null,null,0]
[null,null,null,null,null,0]
[null,null,null,null,null,0]
[null,null,null,null,null,0]
[null,null,null,null,null,0]
[null,null,null,null,null,0]
[null,null,null,null,null,0]
[null,null,null,null,null,0]
[null,null,null,null,null,0]
[null,"ВСЬОГО по закладу",{"$f":"SUM(C7:C49)","v":10.88},{"$f":"SUM(D7:D49)","v":0},null,10.88,null,{"$f":"SUM(H7:H49)","v":0},null,{"$f":"SUM(J7:J49)","v":0},{"$f":"C50-H50","v":10.88}]
[]
[]
[null,"Керівник установи",null,null,null,null,"В.М.Шпильова"]
[null,null,null,null,null,"(підпис)           (ініціали і прізвище) "]
[null,"Головний бухгалтер",null,null,null,null,"Л.В.Омельянова"]
[null,null,null,null,null,"(підпис)           (ініціали і прізвище) "]

{"sheet":"КНП \"ЦПМСД № 1\" шевченківського","index":21,"n_rows":24,"n_cols":13,"rows_kept":24,"cut":false,"hidden":false,"merged":[[20,6,20,7],[22,6,22,7],[2,1,2,9],[3,0,3,10],[4,0,5,0],[4,1,5,1],[4,2,4,4],[4,5,5,5],[4,6,4,9],[4,10,5,10]]}
[null,null,null,null,null,null,null,null,null,null,null,null,"          Додаток до листа"]
[null,null,null,null,null,null,null,null,null,null,null,null,"             від ________ 2018 № ______"]
[null,"ІНФОРМАЦІЯ                                                                                                                                                                                                                                                                                                                                                                                                                    про надходження і використання благодійних пожертв від фізичних та юридичних осіб                                                                                                                                                     КНП\"ЦПМСД№1 Шевченківського району  міста  Києва  за  1 квартал  2018 року "]
["                                                                                                                                           "]
["№ пп","Найменування юридичної особи (або позначення фізичної особи)","Благодійні пожертви, що були отримані закладом охорони здоров'я від фізичних та юридичних осіб",null,null,"Всього отримано благодійних пожертв, тис. грн","Використання закладом охорони здоров'я благодійних пожертв, отриманих у грошовій (товари і послуг) формі",null,null,null,"Залишок невикористаних грошових коштів, товарів та послуг на кінець звітного періоду,            тис. грн"]
[null,null,"В грошовій форм, тис. грн","В  натуральній формі (товари і послуги),    тис. грн","Перелік товарів і послуг в натуральній формі (канцтовари, господарські товари, будівельні товари, медикаменти та перев'язувальні матеріали, продукти харчування, м\"який інвентар, основні засоби та інші)",null,"Напрямки використання у грошовій формі (стаття витрат)","Сума,          тис. грн","Перелік використаних товарів та послуг у натуральній формі  (канцтовари, господарські товари, будівельні товари, медикаменти та перев'язувальні матеріали, продукти харчування, м\"який інвентар, основні засоби та інші)","Сума,          тис. грн"]
[1,"КНП\"КДЦ\"Шевченківського р-ну",null,114.14,"Медикаменти (вакцина)",114.14400000000001,2220,null,"Медикаменти (вакцина)",114.14400000000001,0]
[2,"Фізична  особа",8.19,null,null,{"$f":"SUM(C8,D8)","v":8.19},null,null,null,null,8.19]
[]
[]
[]
[]
[]
[]
[]
[]
[]
[null,"ВСЬОГО по закладу",{"$f":"SUM(C7:C17)","v":8.19},{"$f":"SUM(D7:D17)","v":114.14},null,{"$f":"SUM(C18,D18)","v":122.33},null,{"$f":"SUM(H7:H17)","v":0},null,{"$f":"SUM(J7:J17)","v":114.14400000000001},{"$f":"C18-H18","v":8.19}]
[]
[]
[null,"Керівник установи",null,null,null,null,"   Н.В.Гурська "]
[null,null,null,null,null,"(підпис)           (ініціали і прізвище) "]
[null,"Головний бухгалтер",null,null,null,null,"О.К. Гейко"]
[null,null,null,null,null,"(підпис)           (ініціали і прізвище) "]

{"sheet":"КНП \"ЦПМСД № 2\" шевченківського","index":22,"n_rows":56,"n_cols":11,"rows_kept":56,"cut":false,"hidden":false,"merged":[[52,6,52,7],[54,6,54,7],[2,1,2,9],[3,0,3,10],[4,0,5,0],[4,1,5,1],[4,2,4,4],[4,5,5,5],[4,6,4,9],[4,10,5,10]]}
[null,null,null,null,null,null,null,null,null,"          Додаток до листа"]
[null,null,null,null,null,null,null,null,null,"             від ________ 2018 № ______"]
[null,"ІНФОРМАЦІЯ                                                                                                                                                                                                                                                                                                                                                                                                                    про надходження і використання благодійних пожертв від фізичних та юридичних осіб                                                                                                                                                     КНП \"ЦПМСД №2\" Шевченківського району міста Києва, ЄДРПОУ 38948312 за  І квартал  2018 року "]
["                                                                                                                                            найменування закладу охорони здоров′я"]
["№ пп","Найменування юридичної особи (або позначення фізичної особи)","Благодійні пожертви, що були отримані закладом охорони здоров'я від фізичних та юридичних осіб",null,null,"Всього отримано благодійних пожертв, тис. грн","Використання закладом охорони здоров'я благодійних пожертв, отриманих у грошовій (товари і послуг) формі",null,null,null,"Залишок невикористаних грошових коштів, товарів та послуг на кінець звітного періоду,            тис. грн"]
[null,null,"В грошовій форм, тис. грн","В  натуральній формі (товари і послуги),    тис. грн","Перелік товарів і послуг в натуральній формі (канцтовари, господарські товари, будівельні товари, медикаменти та перев'язувальні матеріали, продукти харчування, м\"який інвентар, основні засоби та інші)",null,"Напрямки використання у грошовій формі (стаття витрат)","Сума,          тис. грн","Перелік використаних товарів та послуг у натуральній формі  (канцтовари, господарські товари, будівельні товари, медикаменти та перев'язувальні матеріали, продукти харчування, м\"який інвентар, основні засоби та інші)","Сума,          тис. грн"]
[1,"КОМУНАЛЬНЕ НЕКОМЕРЦІЙНЕ ПІДПРИЄМСТВО \"ЦЕНТР ПЕРВИННОЇ МЕДИКО-САНІТАРНОЇ ДОПОМОГИ №3\" ШЕВЧЕНКІВСЬКОГО РАЙОНУ МІСТА КИЄВА",null,{"$f":"1869/1000","v":1.869},"вироби медичного призначення. Отримано згідно розпорядження про розподіл УОЗ.",{"$f":"SUM(C7,D7)","v":1.869},null,null,"вироби медичного призначення",{"$f":"1869/1000","v":1.869}]
[null,"КОМУНАЛЬНЕ НЕКОМЕРЦІЙНЕ ПІДПРИЄМСТВО \"КОНСУЛЬТАТИВНО-ДІАГНОСТИЧНИЙ ЦЕНТР\" ШЕВЧЕНКІВСЬКОГО РАЙОНУ МІСТА КИЄВА",null,{"$f":"92165.5/1000","v":92.165499999999994},"вакцина.  Отримано шляхом централізованого постачання за рахунок державного бюджету згідно наказів ДОЗ., УОЗ ",{"$f":"SUM(C8,D8)","v":92.165499999999994},null,null,"вакцина",{"$f":"92165.5/1000","v":92.165499999999994}]
[null,null,null,null,null,0]
[null,null,null,null,null,0]
[null,null,null,null,null,0]
[null,null,null,null,null,0]
[null,null,null,null,null,0]
[null,null,null,null,null,0]
[null,null,null,null,null,0]
[null,null,null,null,null,0]
[null,null,null,null,null,0]
[null,null,null,null,null,0]
[null,null,null,null,null,0]
[null,null,null,null,null,0]
[null,null,null,null,null,0]
[null,null,null,null,null,0]
[null,null,null,null,null,0]
[null,null,null,null,null,0]
[null,null,null,null,null,0]
[null,null,null,null,null,0]
[null,null,null,null,null,0]
[null,null,null,null,null,0]
[null,null,null,null,null,0]
[null,null,null,null,null,0]
[null,null,null,null,null,0]
[null,null,null,null,null,0]
[null,null,null,null,null,0]
[null,null,null,null,null,0]
[null,null,null,null,null,0]
[null,null,null,null,null,0]
[null,null,null,null,null,0]
[null,null,null,null,null,0]
[null,null,null,null,null,0]
[null,null,null,null,null,0]
[null,null,null,null,null,0]
[null,null,null,null,null,0]
[null,null,null,null,null,0]
[null,null,null,null,null,0]
[null,null,null,null,null,0]
[null,null,null,null,null,0]
[null,null,null,null,null,0]
[null,null,null,null,null,0]
[null,null,null,null,null,0]
[null,"ВСЬОГО по закладу",{"$f":"SUM(C7:C49)","v":0},{"$f":"SUM(D7:D49)","v":94.034499999999994},null,94.034499999999994,null,{"$f":"SUM(H7:H49)","v":0},null,{"$f":"SUM(J7:J49)","v":94.034499999999994},{"$f":"C50-H50","v":0}]
[]
[]
[null,"Керівник установи"]
[null,null,null,null,null,"(підпис)           (ініціали і прізвище) "]
[null,"Головний бухгалтер"]
[null,null,null,null,null,"(підпис)           (ініціали і прізвище) "]

{"sheet":"КНП \"ЦПМСД № 3\" шевченкивського","index":23,"n_rows":17,"n_cols":13,"rows_kept":17,"cut":false,"hidden":false,"merged":[[11,6,11,7],[13,6,13,7],[2,1,2,9],[3,0,3,10],[4,0,5,0],[4,1,5,1],[4,2,4,4],[4,5,5,5],[4,6,4,9],[4,10,5,10]]}
[null,null,null,null,null,null,null,null,null,null,null,null,"          Додаток до листа"]
[null,null,null,null,null,null,null,null,null,null,null,null,"             від ________ 2018 № ______"]
[null,"ІНФОРМАЦІЯ                                                                                                                                                                                                                                                                                                                                                                                                                    про надходження і використання благодійних пожертв від фізичних та юридичних осіб                                                                                                                                                     Комунальне некомерційне підприємство « Центр первинної  медико - санітарної допомоги №3» Шевченківського району міста Києва  за  1 квартал 2018  року "]
["                                                                                                                                            найменування закладу охорони здоров′я"]
["№ пп","Найменування юридичної особи (або позначення фізичної особи)","Благодійні пожертви, що були отримані закладом охорони здоров'я від фізичних та юридичних осіб",null,null,"Всього отримано благодійних пожертв, тис. грн","Використання закладом охорони здоров'я благодійних пожертв, отриманих у грошовій (товари і послуг) формі",null,null,null,"Залишок невикористаних грошових коштів, товарів та послуг на кінець звітного періоду,            тис. грн"]
[null,null,"В грошовій форм, тис. грн","В  натуральній формі (товари і послуги),    тис. грн","Перелік товарів і послуг в натуральній формі (канцтовари, господарські товари, будівельні товари, медикаменти та перев'язувальні матеріали, продукти харчування, м\"який інвентар, основні засоби та інші)",null,"Напрямки використання у грошовій формі (стаття витрат)","Сума,          тис. грн","Перелік використаних товарів та послуг у натуральній формі  (канцтовари, господарські товари, будівельні товари, медикаменти та перев'язувальні матеріали, продукти харчування, м\"який інвентар, основні засоби та інші)","Сума,          тис. грн"]
["1.","КНП „Консультативно-діагностичний центр”\nШевченківського району м. Києва\n",null,213.35,"Медикаменти (вакцини)",{"$f":"SUM(C7,D7)","v":213.35},null,null,"Медикаменти (вакцини)",213.35,0]
[2,"Фізична особа",5.71,null,null,{"$f":"SUM(C8,D8)","v":5.71},2240,2.69,"Заправка картриджів",null,3.02]
[null,"ВСЬОГО по закладу",{"$f":"SUM(C7:C8)","v":5.71},{"$f":"SUM(D7:D8)","v":213.35},null,{"$f":"SUM(C9,D9)","v":219.06},null,{"$f":"SUM(H7:H8)","v":2.69},null,{"$f":"SUM(J7:J8)","v":213.35},{"$f":"C9-H9","v":3.02}]
[]
[]
[null,"Директор",null,null,null,null,"Штепа Л.Д."]
[null,null,null,null,null,"(підпис)           (ініціали і прізвище) "]
[null,"Головний бухгалтер",null,null,null,null,"Бернацька Т.А."]
[null,null,null,null,null,"(підпис)           (ініціали і прізвище) "]
[null,"вик.Ляшевська Л.О."]
[null,"455-61-41"]

{"sheet":"розшифровка І квартал","index":24,"n_rows":108,"n_cols":11,"rows_kept":108,"cut":false,"hidden":true,"merged":[[88,0,88,1],[104,6,104,7],[106,6,106,7],[3,0,3,10],[4,0,4,10],[5,0,5,10],[6,0,6,10],[7,0,8,0],[7,1,8,1],[7,2,7,4],[7,5,8,5],[7,6,7,9],[7,10,8,10]]}
[null,null,null,null,null,null,null,null,"Додаток"]
[null,null,null,null,null,null,null,null,"до наказу Міністерства охорони здоров’я України"]
[null,null,null,null,null,null,null,null,"25.07.2017 №848"]
["ІНФОРМАЦІЯ   "]
["про надходження і використання благодійних пожертв від фізичних та юридичних осіб  "]
["Комунальне некомерційне підприємство \"Центр первинної медико-санітарної допомоги \"Русанівка\" Дніпровського району міста Києва\" за І квартал 2018 року"]
[]
["№ пп","Найменування юридичної особи (або позначення фізичної особи)","Благодійні пожертви, що були отримані закладом охорони здоров'я від фізичних та юридичних осіб",null,null,"Всього отримано благодійних пожертв,\nгрн","Використання закладом охорони здоров'я благодійних пожертв, отриманих у грошовій (товари і послуг) формі",null,null,null,"Залишок невикористаних грошових коштів, товарів та послуг на кінець звітного періоду,\nгрн"]
[null,null,"В грошовій форм, грн","В натуральній формі (товари і послуги), грн","Перелік товарів і послуг в натуральній формі (канцтовари, господарські товари, будівельні товари, медикаменти та перев'язувальні матеріали, продукти харчування, м\"який інвентар, основні засоби та інші)",null,"Напрямки використання у грошовій формі (стаття витрат)","Сума,\nгрн","Перелік використаних товарів та послуг у натуральній формі  (канцтовари, господарські товари, будівельні товари, медикаменти та перев'язувальні матеріали, продукти харчування, м\"який інвентар, основні засоби та інші)","Сума,\n грн"]
["2018-01-02","каса",150,null,null,{"$f":"SUM(C10,D10)","v":150}]
["2018-01-05","каса",100,null,null,{"$f":"SUM(C11,D11)","v":100}]
["2018-01-09","каса",20,null,null,20]
[null,"каса",20,null,null,20]
["2018-01-10","каса",100,null,null,100]
[null,"через УкрСиббанк",200,null,null,200]
[null,"через УкрСиббанк",100,null,null,100]
["2018-01-11","через УкрСиббанк",100,null,null,100]
[null,"через УкрСиббанк",10,null,null,10]
[null,"через УкрСиббанк",40,null,null,40]
["2018-01-12","каса",20,null,null,20]
[null,"через УкрСиббанк",100,null,null,100]
["2018-01-16","через УкрСиббанк",100,null,null,100]
["2018-01-17","каса",200,null,null,200]
[null,"каса",300,null,null,300]
["2018-01-22","каса",50,null,null,50]
[null,"каса",300,null,null,300]
[null,"каса",300,null,null,300]
[null,"каса",50,null,null,50]
[null,"через УкрСиббанк",50,null,null,50]
["2018-01-23","каса",300,null,null,300]
[null,"через УкрСиббанк",150,null,null,150]
["2018-01-24","каса",50,null,null,50]
[null,"каса",50,null,null,50]
[null,"каса",60,null,null,60]
["2018-01-29","каса",50,null,null,50]
[null,"через УкрСиббанк",200,null,null,200]
[null,"через УкрСиббанк",95,null,null,95]
[null,"через УкрСиббанк",20,null,null,20]
["2018-01-30","каса",10,null,null,10]
[null,"через УкрСиббанк",300,null,null,300]
[null,"через УкрСиббанк",50,null,null,50]
["2018-01-31","через УкрСиббанк",50,null,null,50]
["2018-02-01","каса",10,null,null,10]
[null,"каса",50,null,null,50]
[null,"каса",50,null,null,50]
[null,"каса",300,null,null,300]
["2018-02-02","каса",30,null,null,30]
[null,"каса",50,null,null,50]
["2018-02-05","каса",150,null,null,150]
["2018-02-06","каса",50,null,null,50]
[null,"каса",100,null,null,100]
["2018-02-07","каса",50,null,null,50]
[null,"через УкрСиббанк",8,null,null,8]
["2018-02-08","через УкрСиббанк",100,null,null,100]
["2018-02-09","через УкрСиббанк",50,null,null,50]
["2018-02-12","через УкрСиббанк",200,null,null,200]
["2018-02-13","каса",100,null,null,100]
[null,"каса",100,null,null,100]
[null,"через УкрСиббанк",25,null,null,25]
[null,"через УкрСиббанк",50,null,null,50]
["2018-02-14","каса",50,null,null,50]
["2018-02-16","каса",100,null,null,100]
["2018-02-19","каса",30,null,null,30]
["2018-02-20","каса",34,null,null,34]
[null,"каса",50,null,null,50]
["2018-02-21","каса",100,null,null,100]
["2018-02-22","каса",100,null,null,100]
[null,"через УкрСиббанк",35,null,null,35]
["2018-02-26","каса",30,null,null,30]
[null,"каса",100,null,null,100]
["2018-02-27","каса",30,null,null,30]
[null,"через УкрСиббанк",50,null,null,50]
["2018-03-02","каса",200,null,null,200]
["2018-03-05","каса",50,null,null,50]
["2018-03-07","каса",100,null,null,100]
["2018-03-12","каса",200,null,null,200]
["2018-03-13","каса",45,null,null,45]
["2018-03-16","каса",50,null,null,50]
["2018-03-19","каса",50,null,null,50]
["2018-03-22","каса",50,null,null,50]
[null,"каса",50,null,null,50]
[null,"каса",70,null,null,70]
[null,"через УкрСиббанк",100,null,null,100]
["2018-03-26","каса",50,null,null,50]
[null,"каса",250,null,null,250]
["2018-03-29","каса",20,null,null,20]
["2018-03-30","каса",30,null,null,30]
[null,"через УкрСиббанк",100,null,null,100]
["ПРИВАТБАНК",null,null,null,null,0]
["2018-01-07",null,199.5,null,null,199.5]
["2018-03-07",null,199.5,null,null,199.5]
["2018-03-14",null,49.5,null,null,49.5]
["2018-03-23",null,99.5,null,null,99.5]
[null,null,null,null,null,0]
[null,null,null,null,null,0]
[null,null,null,null,null,0]
[null,null,null,null,null,0]
[null,null,null,null,null,0]
[null,null,null,null,null,0]
[null,null,null,null,null,0]
[null,null,null,null,null,0]
[null,"ВСЬОГО по закладу",{"$f":"SUM(C10:C101)","v":7840},{"$f":"SUM(D10:D101)","v":0},null,7840,null,{"$f":"SUM(H10:H101)","v":0},null,{"$f":"SUM(J10:J101)","v":0},{"$f":"C102-H102","v":7840}]
[]
[]
[null,"Керівник установи"]
[null,null,null,null,null,"(підпис)           (ініціали і прізвище) "]
[null,"Головний бухгалтер"]
[null,null,null,null,null,"(підпис)           (ініціали і прізвище) "]